fUST/lending_fUST_20250822
["ID","MTS","AMOUNT","RATE_DAILY","PERIOD"]
[380510440,1755797449420,-3698.0,0.00020618,2]
[380510442,1755797449429,-480.0,0.00020618,2]
[380510444,1755797449439,-613.78,0.00020619,2]
[380510446,1755797449449,-480.0,0.00020619,2]
[380510448,1755797449459,-480.0,0.00020619,2]
[380510450,1755797449468,-480.0,0.00020619,2]
[380510452,1755797449477,-480.0,0.00020619,2]
[380510454,1755797449486,-563.55264914,0.00020619,2]
[380510456,1755797449495,-480.0,0.00020619,2]
[380510458,1755797449505,-480.0,0.00020619,2]
[380510460,1755797449515,-519.02,0.00020619,2]
[380510462,1755797449523,-517.96,0.00020619,2]
[380510464,1755797449532,-513.05,0.00020619,2]
[380510466,1755797449542,-480.0,0.00020619,2]
[380510467,1755797449551,-3286.76,0.00020619,2]
[380510469,1755797449560,-2432.73,0.00020619,2]
[380510471,1755797449569,-480.0,0.00020619,2]
[380510473,1755797449578,-480.0,0.00020619,2]
[380510475,1755797449587,-480.0,0.00020619,2]
[380510477,1755797449597,-375.24774704,0.00020619,2]
[380510479,1755797449606,-1016.44,0.00020619,2]
[380510481,1755797449615,-1160.44,0.00020619,2]
[380510483,1755797449625,-480.0,0.00020619,2]
[380510485,1755797449634,-480.0,0.00020619,2]
[380510487,1755797449643,-11228.3,0.00020619,2]
[380510489,1755797449652,-11389.72,0.00020619,2]
[380510491,1755797449661,-1435.74,0.00020619,2]
[380510493,1755797449671,-830.57,0.00020619,2]
[380510495,1755797449680,-2172.53,0.00020619,2]
[380510497,1755797449689,-480.0,0.00020619,2]
[380510499,1755797449698,-480.0,0.00020619,2]
[380510501,1755797449710,-160.0,0.00020634,2]
[380510503,1755797449721,-480.0,0.00020718,2]
[380510505,1755797449730,-438.26751695,0.00020718,2]
[380510507,1755797449739,-480.0,0.00020718,2]
[380510509,1755797449748,-480.0,0.00020718,2]
[380510511,1755797449758,-540.18,0.00020718,2]
[380510512,1755797449767,-480.0,0.00020718,2]
[380510514,1755797449776,-480.0,0.00020718,2]
[380510516,1755797449787,-825.66,0.00020718,2]
[380510518,1755797449796,-743.68,0.00020718,2]
[380510520,1755797449804,-480.0,0.00020718,2]
[380510522,1755797449813,-480.0,0.00020718,2]
[380510524,1755797449823,-1813.05,0.00020718,2]
[380510526,1755797449832,-480.0,0.00020718,2]
[380510528,1755797449842,-578.39,0.00020718,2]
[380510530,1755797449851,-610.33,0.00020718,2]
[380510532,1755797449860,-480.0,0.00020718,2]
[380510534,1755797449870,-1741.58,0.00020718,2]
[380510536,1755797449879,-503.69,0.00020718,2]
[380510538,1755797449888,-313.6067168,0.00020718,2]
[380510540,1755797449896,-480.0,0.00020718,2]
[380510542,1755797449905,-512.51,0.00020718,2]
[380510544,1755797449915,-480.0,0.00020718,2]
[380510546,1755797449924,-338.25889063,0.00020718,2]
[380510548,1755797449933,-716.44,0.00020718,2]
[380510550,1755797449942,-967.43,0.00020718,2]
[380510552,1755797449952,-717.68,0.00020718,2]
[380510554,1755797449961,-6848.12,0.00020718,2]
[380510556,1755797449971,-736.01,0.00020718,2]
[380510558,1755797449980,-1732.99,0.00020718,2]
[380510560,1755797449989,-852.34,0.00020718,2]
[380510561,1755797449998,-4019.45,0.00020718,2]
[380510563,1755797450007,-1030.75,0.00020718,2]
[380510565,1755797450016,-480.0,0.00020718,2]
[380510567,1755797450025,-1647.15,0.00020718,2]
[380510569,1755797450035,-1369.83,0.00020718,2]
[380510571,1755797450044,-480.0,0.00020718,2]
[380510573,1755797450053,-480.0,0.00020718,2]
[380510575,1755797450063,-480.0,0.00020718,2]
[380510577,1755797450072,-2785.35,0.00020718,2]
[380510579,1755797450081,-220.34267956,0.00020718,2]
[380510581,1755797450091,-898.2,0.00020718,2]
[380510583,1755797450100,-662.76,0.00020718,2]
[380510585,1755797450110,-480.0,0.00020718,2]
[380510587,1755797450119,-480.0,0.00020718,2]
[380510589,1755797450128,-1070.54,0.00020718,2]
[380510591,1755797450138,-3727.42,0.00020718,2]
[380510593,1755797450147,-480.0,0.00020718,2]
[380510595,1755797450157,-1000.0,0.00020721,2]
[380510597,1755797450166,-480.0,0.00020721,2]
[380510599,1755797450175,-662.32,0.00020721,2]
[380510601,1755797450185,-904.74,0.00020721,2]
[380510603,1755797450194,-480.0,0.00020721,2]
[380510605,1755797450203,-480.0,0.00020721,2]
[380510607,1755797450214,-480.0,0.00020721,2]
[380510609,1755797450223,-480.0,0.00020721,2]
[380510611,1755797450233,-480.0,0.00020721,2]
[380510613,1755797450242,-480.0,0.00020721,2]
[380510615,1755797450251,-480.0,0.00020721,2]
[380510617,1755797450260,-480.0,0.00020721,2]
[380510619,1755797450272,-684.51,0.00020721,2]
[380510621,1755797450281,-906.65,0.00020721,2]
[380510623,1755797450290,-480.0,0.00020721,2]
[380510625,1755797450299,-729.6,0.00020721,2]
[380510627,1755797450309,-480.0,0.00020721,2]
[380510629,1755797450318,-480.0,0.00020721,2]
[380510631,1755797450327,-529.98,0.00020721,2]
[380510633,1755797450337,-480.0,0.00020721,2]
[380510635,1755797450347,-525.08535086,0.00020721,2]
[380510637,1755797450356,-480.0,0.00020721,2]
[380510639,1755797450365,-480.0,0.00020721,2]
[380510640,1755797450374,-480.0,0.00020721,2]
[380510642,1755797450384,-563.78,0.00020721,2]
[380510644,1755797450393,-480.0,0.00020721,2]
[380510646,1755797450403,-535.11510845,0.00020721,2]
[380510648,1755797450412,-480.0,0.00020721,2]
[380510650,1755797450421,-480.0,0.00020721,2]
[380510652,1755797450430,-779.37,0.00020721,2]
[380510654,1755797450440,-348.3465289,0.00020721,2]
[380510656,1755797450449,-480.0,0.00020721,2]
[380510658,1755797450459,-480.0,0.00020721,2]
[380510660,1755797450468,-480.0,0.00020733,2]
[380510662,1755797450478,-1302.22,0.00020733,2]
[380510664,1755797450487,-480.0,0.00020733,2]
[380510666,1755797450496,-480.0,0.00020733,2]
[380510668,1755797450505,-480.0,0.00020734,2]
[380510670,1755797450515,-480.0,0.00020734,2]
[380510672,1755797450525,-480.0,0.00020734,2]
[380510674,1755797450534,-480.0,0.00020734,2]
[380510676,1755797450543,-480.0,0.00020734,2]
[380510678,1755797450553,-480.0,0.00020734,2]
[380510680,1755797450562,-480.0,0.00020734,2]
[380510682,1755797450572,-480.0,0.00020734,2]
[380510684,1755797450581,-480.0,0.00020734,2]
[380510686,1755797450590,-480.0,0.00020734,2]
[380510688,1755797450599,-480.0,0.00020734,2]
[380510690,1755797450608,-714.35,0.00020734,2]
[380510691,1755797450617,-480.0,0.00020734,2]
[380510693,1755797450627,-480.0,0.00020734,2]
[380510695,1755797450636,-480.0,0.00020734,2]
[380510697,1755797450645,-480.0,0.00020734,2]
[380510699,1755797450654,-480.0,0.00020734,2]
[380510701,1755797450663,-1500.0,0.00020768,2]
[380510703,1755797450672,-500.0,0.00020773,2]
[380510705,1755797450682,-500.0,0.00020773,2]
[380510707,1755797450691,-577.34170206,0.00020773,2]
[380510709,1755797450700,-500.0,0.00020773,2]
[380510711,1755797450711,-500.0,0.00020773,2]
[380510713,1755797450722,-500.0,0.00020773,2]
[380510715,1755797450732,-432.9956521,0.00020793,2]
[380510717,1755797450742,-500.0,0.0002084,2]
[380510719,1755797450751,-1500.0,0.00020868,2]
[380510721,1755797450760,-1500.0,0.00020868,2]
[380510723,1755797450769,-1500.0,0.00020868,2]
[380510724,1755797450778,-500.0,0.00020868,2]
[380510726,1755797450788,-1500.0,0.00020868,2]
[380510728,1755797450797,-480.0,0.00020891,2]
[380510730,1755797450806,-747.37,0.00020891,2]
[380510732,1755797450815,-968.79,0.00020891,2]
[380510734,1755797450825,-751.51,0.00020891,2]
[380510736,1755797450835,-369.52628512,0.00020891,2]
[380510738,1755797450844,-4465.99,0.00020891,2]
[380510740,1755797450853,-496.84,0.00020892,2]
[380510742,1755797450864,-480.0,0.00020892,2]
[380510744,1755797450873,-480.0,0.00020892,2]
[380510746,1755797450883,-1345.02,0.00020892,2]
[380510748,1755797450892,-2124.36,0.00020892,2]
[380510750,1755797450901,-1224.53,0.00020892,2]
[380510752,1755797450910,-480.0,0.00020892,2]
[380510754,1755797450919,-480.0,0.00020892,2]
[380510756,1755797450928,-480.0,0.00020892,2]
[380510758,1755797450938,-480.0,0.00020892,2]
[380510760,1755797450947,-1262.82,0.00020892,2]
[380510762,1755797450957,-1395.19,0.00020892,2]
[380510764,1755797450967,-480.0,0.00020892,2]
[380510766,1755797450976,-480.0,0.00020892,2]
[380510768,1755797450985,-1824.98,0.00020892,2]
[380510770,1755797450994,-776.68,0.00020892,2]
[380510772,1755797451003,-480.0,0.00020892,2]
[380510774,1755797451012,-555.14,0.00020892,2]
[380510775,1755797451021,-480.0,0.00020892,2]
[380510777,1755797451030,-5299.52,0.00020892,2]
[380510779,1755797451039,-2220.01,0.00020892,2]
[380510781,1755797451049,-614.65538629,0.00020892,2]
[380510783,1755797451058,-1184.95,0.00020892,2]
[380510785,1755797451067,-1275.6,0.00020892,2]
[380510787,1755797451076,-480.0,0.00020892,2]
[380510789,1755797451085,-480.0,0.00020892,2]
[380510791,1755797451095,-480.0,0.00020892,2]
[380510793,1755797451104,-821.32,0.00020892,2]
[380510795,1755797451113,-480.0,0.00020892,2]
[380510797,1755797451122,-480.0,0.00020892,2]
[380510799,1755797451131,-1677.65,0.00020892,2]
[380510801,1755797451141,-5269.04,0.00020892,2]
[380510803,1755797451150,-480.0,0.00020892,2]
[380510805,1755797451159,-480.0,0.00020892,2]
[380510807,1755797451169,-480.0,0.00020892,2]
[380510809,1755797451178,-986.09,0.00020892,2]
[380510824,1755797451314,-4029.63,0.00020892,2]
[380510827,1755797451341,-2535.91,0.00020892,2]
[380510829,1755797451351,-480.0,0.00020892,2]
[380510831,1755797451361,-914.18,0.00020892,2]
[380510833,1755797451371,-673.2,0.00020892,2]
[380510835,1755797451381,-401.16053677,0.00020892,2]
[380510837,1755797451390,-954.93,0.00020892,2]
[380510839,1755797451400,-2426.89,0.00020892,2]
[380510841,1755797451410,-837.24,0.00020892,2]
[380510843,1755797451419,-1358.67,0.00020892,2]
[380510845,1755797451428,-891.4,0.00020892,2]
[380510847,1755797451437,-1065.61,0.00020892,2]
[380510848,1755797451447,-1238.92,0.00020892,2]
[380510850,1755797451458,-480.0,0.00020892,2]
[380510852,1755797451467,-1254.99,0.00020892,2]
[380510854,1755797451477,-480.0,0.00020892,2]
[380510856,1755797451486,-480.0,0.00020892,2]
[380510858,1755797451496,-1683.94,0.00020892,2]
[380510860,1755797451506,-1300.44,0.00020892,2]
[380510862,1755797451515,-3698.0,0.00020892,2]
[380510864,1755797451524,-480.0,0.00020892,2]
[380510866,1755797451534,-613.78,0.00020893,2]
[380510868,1755797451544,-480.0,0.00020893,2]
[380510870,1755797451554,-480.0,0.00020893,2]
[380510872,1755797451563,-480.0,0.00020893,2]
[380510873,1755797451573,-480.0,0.00020893,2]
[380510874,1755797451582,-480.0,0.00020893,2]
[380510875,1755797451591,-480.0,0.00020893,2]
[380510876,1755797451601,-519.02,0.00020893,2]
[380510877,1755797451610,-517.96,0.00020893,2]
[380510878,1755797451619,-513.05,0.00020893,2]
[380510879,1755797451628,-480.0,0.00020893,2]
[380510880,1755797451637,-3286.76,0.00020893,2]
[380510881,1755797451647,-2432.73,0.00020893,2]
[380510882,1755797451656,-168.84587543,0.00020893,2]
[380510883,1755797451666,-480.0,0.00020893,2]
[380510884,1755797451675,-480.0,0.00020893,2]
[380510885,1755797451684,-1016.44,0.00020893,2]
[380510886,1755797451693,-1160.44,0.00020893,2]
[380510887,1755797451702,-480.0,0.00020893,2]
[380510888,1755797451713,-480.0,0.00020893,2]
[380510889,1755797451722,-8206.88394118,0.00020893,2]
[380510890,1755797451915,-3021.41605882,0.00020893,2]
[380510891,1755797451925,-11389.72,0.00020893,2]
[380510892,1755797451936,-1435.74,0.00020893,2]
[380510893,1755797451946,-830.57,0.00020893,2]
[380510894,1755797451955,-2172.53,0.00020893,2]
[380510895,1755797451965,-480.0,0.00020893,2]
[380510897,1755797451974,-480.0,0.00020893,2]
[380510899,1755797451984,-168.0,0.00020894,2]
[380510900,1755797451993,-251.36092033,0.000209,2]
[380510902,1755797452002,-1500.0,0.00020968,2]
[380510904,1755797452011,-1500.0,0.00020968,2]
[380510906,1755797452021,-1500.0,0.00020968,2]
[380510908,1755797452031,-1500.0,0.00020968,2]
[380510910,1755797452040,-500.0,0.00020973,2]
[380510912,1755797452049,-500.0,0.00020973,2]
[380510914,1755797452059,-541.29110172,0.00020973,2]
[380510916,1755797452068,-500.0,0.00020973,2]
[380510918,1755797452078,-500.0,0.00020973,2]
[380510920,1755797452089,-500.0,0.00020973,2]
[380510922,1755797452098,-500.0,0.00020973,2]
[380510923,1755797452107,-500.40802418,0.00020973,2]
[380510925,1755797452116,-527.88255609,0.00020973,2]
[380510927,1755797452125,-500.0,0.00020973,2]
[380510929,1755797452135,-500.0,0.00020973,2]
[380510931,1755797452144,-158.72404173,0.00020973,2]
[380510933,1755797452153,-500.0,0.00020973,2]
[380510935,1755797452163,-500.0,0.00020973,2]
[380510937,1755797452171,-500.0,0.00020973,2]
[380510939,1755797452180,-500.72801513,0.00020973,2]
[380510941,1755797452190,-500.0,0.00020973,2]
[380510943,1755797452199,-500.0,0.00020973,2]
[380510945,1755797452210,-500.0,0.00020973,2]
[380510946,1755797452220,-500.0,0.00020973,2]
[380510948,1755797452229,-500.0,0.00020973,2]
[380510950,1755797452238,-500.0,0.00020973,2]
[380510952,1755797452247,-500.0,0.00020973,2]
[380510954,1755797452257,-500.0,0.00020973,2]
[380510956,1755797452266,-633.27635338,0.00020973,2]
[380510958,1755797452275,-500.0,0.00020973,2]
[380510960,1755797452284,-500.0,0.00020973,2]
[380510962,1755797452295,-500.0,0.00020973,2]
[380510964,1755797452304,-500.0,0.00020973,2]
[380510966,1755797452314,-500.0,0.00020973,2]
[380510968,1755797452323,-500.0,0.00020973,2]
[380510970,1755797452332,-500.0,0.00020973,2]
[380510972,1755797452341,-500.0,0.00020973,2]
[380510974,1755797452351,-500.0,0.00020973,2]
[380510976,1755797452360,-500.0,0.00020973,2]
[380510978,1755797452369,-500.0,0.00020973,2]
[380510979,1755797452378,-500.0,0.00020973,2]
[380510981,1755797452387,-500.0,0.00020973,2]
[380510983,1755797452396,-646.70786452,0.00020973,2]
[380510985,1755797452406,-500.0,0.00020973,2]
[380510987,1755797452415,-500.0,0.00020973,2]
[380510989,1755797452424,-397.54348367,0.00020973,2]
[380510991,1755797452433,-500.0,0.00020973,2]
[380510993,1755797452443,-500.0,0.00020973,2]
[380510995,1755797452452,-500.0,0.00020973,2]
[380510997,1755797452462,-168.0,0.00020988,2]
[380510999,1755797452471,-255.0,0.00020989,2]
[380511001,1755797452481,-480.0,0.00020992,2]
[380511003,1755797452490,-480.0,0.00020992,2]
[380511005,1755797452500,-480.0,0.00020992,2]
[380511007,1755797452510,-540.18,0.00020992,2]
[380511009,1755797452520,-480.0,0.00020992,2]
[380511010,1755797452528,-480.0,0.00020992,2]
[380511012,1755797452538,-825.66,0.00020992,2]
[380511014,1755797452547,-743.68,0.00020992,2]
[380511016,1755797452556,-480.0,0.00020992,2]
[380511018,1755797452565,-480.0,0.00020992,2]
[380511020,1755797452575,-1813.05,0.00020992,2]
[380511022,1755797452584,-480.0,0.00020992,2]
[380511024,1755797452593,-578.39,0.00020992,2]
[380511026,1755797452603,-610.33,0.00020992,2]
[380511028,1755797452611,-480.0,0.00020992,2]
[380511030,1755797452621,-1741.58,0.00020992,2]
[380511032,1755797452630,-503.69,0.00020992,2]
[380511034,1755797452639,-480.0,0.00020992,2]
[380511036,1755797452649,-512.51,0.00020992,2]
[380511038,1755797452662,-480.0,0.00020992,2]
[380511041,1755797452676,-716.44,0.00020992,2]
[380511043,1755797452691,-967.43,0.00020992,2]
[380511045,1755797452703,-717.68,0.00020992,2]
[380511047,1755797452717,-6848.12,0.00020992,2]
[380511048,1755797452730,-736.01,0.00020992,2]
[380511049,1755797452742,-1732.99,0.00020992,2]
[380511050,1755797452756,-852.34,0.00020992,2]
[380511051,1755797452769,-4019.45,0.00020992,2]
[380511052,1755797452782,-1030.75,0.00020992,2]
[380511053,1755797452796,-480.0,0.00020992,2]
[380511054,1755797452810,-1647.15,0.00020992,2]
[380511055,1755797452823,-1369.83,0.00020992,2]
[380511056,1755797452835,-480.0,0.00020992,2]
[380511057,1755797452848,-480.0,0.00020992,2]
[380511058,1755797452860,-225.63419394,0.00020992,2]
[380511059,1755797452871,-2785.35,0.00020992,2]
[380511060,1755797452885,-898.2,0.00020992,2]
[380511061,1755797452897,-662.76,0.00020992,2]
[380511062,1755797452909,-480.0,0.00020992,2]
[380511063,1755797452920,-480.0,0.00020992,2]
[380511064,1755797452930,-1070.54,0.00020992,2]
[380511065,1755797452942,-3727.42,0.00020992,2]
[380511066,1755797452954,-480.0,0.00020992,2]
[380511067,1755797452966,-480.0,0.00020995,2]
[380511068,1755797452978,-662.32,0.00020995,2]
[380511069,1755797452991,-904.74,0.00020995,2]
[380511070,1755797453003,-480.0,0.00020995,2]
[380511071,1755797453017,-480.0,0.00020995,2]
[380511072,1755797453030,-480.0,0.00020995,2]
[380511073,1755797453044,-480.0,0.00020995,2]
[380511074,1755797453054,-480.0,0.00020995,2]
[380511075,1755797453064,-480.0,0.00020995,2]
[380511076,1755797453074,-480.0,0.00020995,2]
[380511077,1755797453086,-480.0,0.00020995,2]
[380511078,1755797453100,-684.51,0.00020995,2]
[380511079,1755797453113,-906.65,0.00020995,2]
[380511080,1755797453124,-384.96195888,0.00020995,2]
[380511081,1755797453135,-729.6,0.00020995,2]
[380511082,1755797453146,-480.0,0.00020995,2]
[380511083,1755797453159,-480.0,0.00020995,2]
[380511084,1755797453171,-529.98,0.00020995,2]
[380511085,1755797453182,-480.0,0.00020995,2]
[380511086,1755797453192,-480.0,0.00020995,2]
[380511087,1755797453203,-480.0,0.00020995,2]
[380511088,1755797453215,-480.0,0.00020995,2]
[380511089,1755797453226,-563.78,0.00020995,2]
[380511090,1755797453237,-480.0,0.00020995,2]
[380511091,1755797453250,-480.0,0.00020995,2]
[380511092,1755797453261,-480.0,0.00020995,2]
[380511093,1755797453272,-779.37,0.00020995,2]
[380511094,1755797453284,-480.0,0.00020995,2]
[380511095,1755797453295,-480.0,0.00020995,2]
[380511096,1755797453307,-302.63330362,0.00021,2]
[380511097,1755797453318,-1211.5222257,0.00021,2]
[380511098,1755797453329,-203.21289089,0.00021,2]
[380511099,1755797453340,-162527.04965243,0.00021,2]
[380511100,1755797453355,-92459.13237713,0.00021,2]
[380511101,1755797453369,-25479.9763185,0.00021,2]
[380511102,1755797453392,-42562.86710871,0.00021,2]
[380511103,1755797453404,-9578.59416075,0.00021001,5]
[380511104,1755797453417,-480.0,0.00021007,2]
[380511105,1755797453428,-1302.22,0.00021007,2]
[380511106,1755797453439,-480.0,0.00021007,2]
[380511107,1755797453450,-480.0,0.00021007,2]
[380511108,1755797453462,-480.0,0.00021008,2]
[380511109,1755797453473,-480.0,0.00021008,2]
[380511110,1755797453485,-480.0,0.00021008,2]
[380511111,1755797453496,-480.0,0.00021008,2]
[380511112,1755797453507,-480.0,0.00021008,2]
[380511113,1755797453518,-480.0,0.00021008,2]
[380511114,1755797453529,-480.0,0.00021008,2]
[380511115,1755797453541,-480.0,0.00021008,2]
[380511116,1755797453552,-480.0,0.00021008,2]
[380511117,1755797453564,-480.0,0.00021008,2]
[380511118,1755797453575,-480.0,0.00021008,2]
[380511119,1755797453586,-714.35,0.00021008,2]
[380511120,1755797453598,-480.0,0.00021008,2]
[380511121,1755797453608,-480.0,0.00021008,2]
[380511122,1755797453619,-480.0,0.00021008,2]
[380511123,1755797453631,-480.0,0.00021008,2]
[380511124,1755797453642,-480.0,0.00021008,2]
[380511125,1755797453652,-1000.0,0.00021021,2]
[380511126,1755797453664,-1000.0,0.00021021,2]
[380511127,1755797453675,-1000.0,0.00021021,2]
[380511128,1755797453685,-1000.0,0.00021021,2]
[380511129,1755797453696,-1000.0,0.00021021,2]
[380511130,1755797453708,-962.85309979,0.00021021,2]
[380511131,1755797453722,-500.0,0.00021021,2]
[380511132,1755797453733,-500.0,0.00021021,2]
[380511133,1755797453744,-1000.0,0.00021021,2]
[380511134,1755797453756,-500.0,0.00021021,2]
[380511135,1755797453767,-1000.0,0.00021021,2]
[380511136,1755797453778,-1000.0,0.00021021,2]
[380511137,1755797453790,-1000.0,0.00021021,2]
[380511138,1755797453801,-255.0,0.0002103,2]
[380511139,1755797453812,-600.0,0.00021095,2]
[380511140,1755797453823,-168.0,0.00021113,2]
[380511141,1755797453834,-255.0,0.00021119,2]
[380511142,1755797453846,-151.0,0.00021165,2]
[380511143,1755797453857,-19847.46885296,0.00021165,2]
[380511144,1755797453868,-480.0,0.00021165,2]
[380511145,1755797453880,-747.37,0.00021165,2]
[380511146,1755797453891,-968.79,0.00021165,2]
[380511147,1755797453901,-751.51,0.00021165,2]
[380511148,1755797453911,-4465.99,0.00021165,2]
[380511149,1755797453921,-496.84,0.00021166,2]
[380511150,1755797453930,-480.0,0.00021166,2]
[380511151,1755797453939,-480.0,0.00021166,2]
[380511152,1755797453949,-1345.02,0.00021166,2]
[380511153,1755797453959,-2124.36,0.00021166,2]
[380511154,1755797453969,-1224.53,0.00021166,2]
[380511155,1755797453979,-480.0,0.00021166,2]
[380511156,1755797453988,-480.0,0.00021166,2]
[380511157,1755797453997,-480.0,0.00021166,2]
[380511158,1755797454006,-480.0,0.00021166,2]
[380511159,1755797454016,-1262.82,0.00021166,2]
[380511160,1755797454025,-1395.19,0.00021166,2]
[380511161,1755797454035,-480.0,0.00021166,2]
[380511162,1755797454044,-480.0,0.00021166,2]
[380511163,1755797454053,-1824.98,0.00021166,2]
[380511164,1755797454062,-776.68,0.00021166,2]
[380511165,1755797454072,-480.0,0.00021166,2]
[380511166,1755797454081,-555.14,0.00021166,2]
[380511168,1755797454090,-480.0,0.00021166,2]
[380511170,1755797454100,-5299.52,0.00021166,2]
[380511172,1755797454109,-2220.01,0.00021166,2]
[380511174,1755797454119,-1184.95,0.00021166,2]
[380511176,1755797454127,-1275.6,0.00021166,2]
[380511178,1755797454137,-480.0,0.00021166,2]
[380511179,1755797454146,-480.0,0.00021166,2]
[380511181,1755797454154,-480.0,0.00021166,2]
[380511182,1755797454164,-821.32,0.00021166,2]
[380511183,1755797454173,-378.84489992,0.00021166,2]
[380511184,1755797454183,-480.0,0.00021166,2]
[380511185,1755797454193,-1677.65,0.00021166,2]
[380511186,1755797454202,-5269.04,0.00021166,2]
[380511187,1755797454213,-480.0,0.00021166,2]
[380511188,1755797454223,-480.0,0.00021166,2]
[380511189,1755797454233,-480.0,0.00021166,2]
[380511190,1755797454243,-986.09,0.00021166,2]
[380511191,1755797454252,-4029.63,0.00021166,2]
[380511192,1755797454261,-2535.91,0.00021166,2]
[380511193,1755797454271,-480.0,0.00021166,2]
[380511194,1755797454281,-914.18,0.00021166,2]
[380511195,1755797454290,-673.2,0.00021166,2]
[380511196,1755797454299,-954.93,0.00021166,2]
[380511197,1755797454309,-2426.89,0.00021166,2]
[380511198,1755797454319,-837.24,0.00021166,2]
[380511199,1755797454328,-1358.67,0.00021166,2]
[380511200,1755797454338,-891.4,0.00021166,2]
[380511201,1755797454347,-1065.61,0.00021166,2]
[380511202,1755797454357,-1238.92,0.00021166,2]
[380511203,1755797454367,-480.0,0.00021166,2]
[380511204,1755797454377,-1254.99,0.00021166,2]
[380511205,1755797454387,-480.0,0.00021166,2]
[380511206,1755797454679,-480.0,0.00021166,2]
[380511207,1755797454697,-1683.94,0.00021166,2]
[380511208,1755797454715,-1300.44,0.00021166,2]
[380511209,1755797454729,-3698.0,0.00021166,2]
[380511210,1755797454738,-480.0,0.00021166,2]
[380511211,1755797454747,-613.78,0.00021167,2]
[380511212,1755797454759,-476.84909261,0.00021167,2]
[380511213,1755797454768,-480.0,0.00021167,2]
[380511214,1755797454778,-480.0,0.00021167,2]
[380511215,1755797454787,-480.0,0.00021167,2]
[380511216,1755797454798,-480.0,0.00021167,2]
[380511217,1755797454808,-480.0,0.00021167,2]
[380511218,1755797454817,-519.02,0.00021167,2]
[380511219,1755797454826,-517.96,0.00021167,2]
[380511220,1755797454835,-513.05,0.00021167,2]
[380511221,1755797454844,-480.0,0.00021167,2]
[380511222,1755797454854,-3286.76,0.00021167,2]
[380511223,1755797454864,-2432.73,0.00021167,2]
[380511224,1755797454873,-425.51787323,0.00021167,2]
[380511225,1755797454884,-480.0,0.00021167,2]
[380511226,1755797454895,-1016.44,0.00021167,2]
[380511227,1755797454905,-1160.44,0.00021167,2]
[380511228,1755797454914,-480.0,0.00021167,2]
[380511229,1755797454924,-480.0,0.00021167,2]
[380511230,1755797454933,-11228.3,0.00021167,2]
[380511231,1755797454943,-167.343957,0.00021167,2]
[380511232,1755797454953,-11389.72,0.00021167,2]
[380511233,1755797454967,-1435.74,0.00021167,2]
[380511234,1755797454978,-151.0,0.00021167,2]
[380511235,1755797454987,-830.57,0.00021167,2]
[380511236,1755797454997,-2172.53,0.00021167,2]
[380511237,1755797455006,-480.0,0.00021167,2]
[380511238,1755797455015,-480.0,0.00021167,2]
[380511239,1755797455024,-2581.82688372,0.00021169,2]